[Event "95th Caplin Hastings Congress"]
[Site "Hastings"]
[Date "2019.12.29"]
[Round "2.32"]
[White "Barton, R Alan"]
[Black "Gallagher, Daniel GH"]
[Result "0-1"]
[ECO "E61"]
[WhiteElo "1945"]
[BlackElo "2171"]
[Annotator "NA"]
[PlyCount "138"]
[EventDate "2019.12.28"]
[EventType "swiss"]
[EventCountry "ENG"]
[SourceTitle "playchess.com"]
[Source "ChessBase"]
[SourceQuality "1"]
[TimeControl "40/6600+30:3000+30"]

1. d4 {[%emt 0:09:40]} Nf6 {[%emt 0:09:42]} 2. Nf3 {[%emt 0:00:24]} g6 {[%emt 0:00:13]} 3. c4 {[%emt 0:01:31]} Bg7 {[%emt 0:00:10]} 4. Nc3 {[%emt 0:01:03]} O-O {[%emt 0:00:14]} 5. Bg5 {[%emt 0:01:49]} c5 {[%emt 0:01:17]} 6. d5 {[%emt 0:05:10]} h6 {[%emt 0:00:26]} 7. Bh4 {[%emt 0:02:29]} b5 {[%emt 0:00:58]} 8. e4 {[%emt 0:04:34]} b4 {[%emt 0:05:27]} 9. e5 {[%emt 0:00:33]} bxc3 {[%emt 0:00:52]} 10. exf6 {[%emt 0:00:05]} exf6 {[%emt 0:01:07]} 11. bxc3 {[%emt 0:04:02]} g5 {[%emt 0:03:07]} 12. Bg3 {[%emt 0:04:55]} f5 {[%emt 0:06:06]} 13. Bxb8 {[%emt 0:01:39]} Bxc3+ {[%emt 0:05:14]} 14. Nd2 {[%emt 0:00:11]} Rxb8 {[%emt 0:01:24]} 15. Rc1 {[%emt 0:05:18]} Qf6 {[%emt 0:10:59]} 16. Be2 {[%emt 0:03:50]} Re8 {[%emt 0:06:00]} 17. O-O {[%emt 0:04:05]} Rb2 {[%emt 0:04:42]} 18. Nb1 {[%emt 0:02:17]} Bd4 {[%emt 0:02:40]} 19. Rc2 {[%emt 0:01:11]} Rxc2 {[%emt 0:00:54]} 20. Qxc2 {[%emt 0:00:06]} d6 {[%emt 0:00:08]} 21. Bd3 {[%emt 0:08:35]} g4 {[%emt 0:07:53]} 22. Nd2 {[%emt 0:03:03]} h5 {[%emt 0:06:28]} 23. Rb1 {[%emt 0:08:44]} h4 {[%emt 0:02:23]} 24. Nb3 {[%emt 0:07:01]} Bc3 {[%emt 0:01:20]} 25. Nc1 {[%emt 0:06:17]} Re1+ {[%emt 0:31:26]} 26. Bf1 {[%emt 0:00:07]} Ba6 {[%emt 0:00:08]} 27. Ne2 {[%emt 0:08:41]} Rxb1 {[%emt 0:00:10]} 28. Qxb1 {[%emt 0:00:10]} Be5 {[%emt 0:07:50]} 29. Qb3 {[%emt 0:05:06]} Kg7 {[%emt 0:00:46]} 30. Qa4 {[%emt 0:01:53]} Bc8 {[%emt 0:00:15]} 31. Qe8 {[%emt 0:01:45]} Ba6 {[%emt 0:00:06]} 32. Qa4 {[%emt 0:00:26]} f4 {[%emt 0:03:19]} 33. Qxa6 {[%emt 0:02:37]} f3 {[%emt 0:00:01]} 34. Qc8 {[%emt 0:06:30]} Qg5 {[%emt 0:00:12]} 35. g3 {[%emt 0:02:41]} fxe2 {[%emt 0:00:13]} 36. Bxe2 {[%emt 0:00:05]} Qc1+ {[%emt 0:01:43]} 37. Bf1 {[%emt 0:00:33]} Qg5 {[%emt 0:00:59]} 38. Qd7 {[%emt 0:02:54]} h3 {[%emt 0:01:08]} 39. Be2 {[%emt 0:01:15]} Qc1+ {[%emt 0:00:08]} 40. Bf1 {[%emt 0:00:18]} Qd1 {[%emt 0:00:58]} 41. Qf5 {[%emt 0:56:06]} Bf6 {[%emt 0:06:05]} 42. Qe4 {[%emt 0:00:00]} a5 {[%emt 0:01:48]} 43. Qe2 {[%emt 0:00:00]} Qd4 {[%emt 0:00:05]} 44. a4 {[%emt 0:00:00]} Be5 {[%emt 0:01:22]} 45. Qe1 {[%emt 0:00:00]} f5 {[%emt 0:02:10]} 46. Qe3 {[%emt 0:00:00]} Kg6 {[%emt 0:02:03]} 47. Qxd4 {[%emt 0:00:00]} Bxd4 {[%emt 0:00:38]} 48. Bd3 {[%emt 0:00:00]} Kg5 {[%emt 0:01:46]} 49. Kf1 {[%emt 0:00:00]} f4 {[%emt 0:00:05]} 50. Be4 {[%emt 0:00:00]} Bc3 {[%emt 0:00:48]} 51. f3 {[%emt 0:00:00]} Be5 {[%emt 0:02:26]} 52. Kf2 {[%emt 0:00:00]} Bd4+ {[%emt 0:00:05]} 53. Kf1 {[%emt 0:00:00]} Be3 {[%emt 0:00:05]} 54. fxg4 {[%emt 0:00:00]} fxg3 {[%emt 0:00:22]} 55. hxg3 {[%emt 0:00:00]} Kxg4 {[%emt 0:00:08]} 56. Ke2 {[%emt 0:00:00]} Bd4 {[%emt 0:00:12]} 57. Kf1 {[%emt 0:00:00]} Kxg3 {[%emt 0:00:05]} 58. Bf5 {[%emt 0:00:00]} h2 {[%emt 0:01:27]} 59. Be4 {[%emt 0:00:00]} Kf4 {[%emt 0:00:05]} 60. Bg2 {[%emt 0:00:00]} Ke3 {[%emt 0:00:32]} 61. Ke1 {[%emt 0:00:00]} Kd3 {[%emt 0:00:23]} 62. Kd1 {[%emt 0:01:00]} Kxc4 {[%emt 0:00:10]} 63. Kc2 {[%emt 0:00:32]} Kb4 {[%emt 0:00:10]} 64. Kd3 {[%emt 0:02:53]} Kxa4 {[%emt 0:00:27]} 65. Kc4 {[%emt 0:00:21]} Ka3 {[%emt 0:00:06]} 66. Bf3 {[%emt 0:03:34]} a4 {[%emt 0:00:13]} 67. Kb5 {[%emt 0:00:34]} Kb3 {[%emt 0:00:10]} 68. Bd1+ {[%emt 0:00:29]} Kb2 {[%emt 0:00:05]} 69. Bf3 {[%emt 0:00:21]} a3 {[%emt 0:00:05]} 0-1

[Event "95th Caplin Hastings Congress"]
[Site "Hastings"]
[Date "2019.12.29"]
[Round "2.33"]
[White "Anderson, John"]
[Black "Chapman, Matt"]
[Result "1/2-1/2"]
[ECO "D19"]
[WhiteElo "2163"]
[BlackElo "1937"]
[Annotator "NA"]
[PlyCount "45"]
[EventDate "2019.12.28"]
[EventType "swiss"]
[EventCountry "ENG"]
[SourceTitle "playchess.com"]
[Source "ChessBase"]
[SourceQuality "1"]
[TimeControl "40/6600+30:3000+30"]

1. Nf3 {[%emt 0:09:41]} d5 {[%emt 0:09:36]} 2. d4 {[%emt 0:00:25]} Nf6 {[%emt 0:00:13]} 3. c4 {[%emt 0:00:05]} c6 {[%emt 0:00:08]} 4. Nc3 {[%emt 0:01:04]} dxc4 {[%emt 0:00:31]} 5. a4 {[%emt 0:00:40]} Bf5 {[%emt 0:00:24]} 6. e3 {[%emt 0:01:09]} e6 {[%emt 0:00:41]} 7. Bxc4 {[%emt 0:00:04]} Bb4 {[%emt 0:00:08]} 8. O-O {[%emt 0:00:15]} O-O {[%emt 0:00:20]} 9. Qe2 {[%emt 0:00:55]} Nbd7 {[%emt 0:00:46]} 10. e4 {[%emt 0:00:38]} Bg6 {[%emt 0:00:22]} 11. Bd3 {[%emt 0:00:29]} Bh5 {[%emt 0:02:22]} 12. Bf4 {[%emt 0:02:38]} Qa5 {[%emt 0:10:41]} 13. Na2 {[%emt 0:14:53]} Be7 {[%emt 0:08:51]} 14. Rfc1 {[%emt 0:24:32]} e5 {[%emt 0:08:48]} 15. b4 {[%emt 0:01:03]} Qc7 {[%emt 0:12:53]} 16. Bg3 {[%emt 0:00:11]} Bxf3 {[%emt 0:05:24]} 17. Qxf3 {[%emt 0:01:34]} Qd6 {[%emt 0:00:15]} 18. d5 {[%emt 0:10:49]} cxd5 {[%emt 0:07:43]} 19. exd5 {[%emt 0:00:06]} Qxd5 {[%emt 0:01:50]} 20. Qxd5 {[%emt 0:01:01]} Nxd5 {[%emt 0:00:06]} 21. Be4 {[%emt 0:00:00]} N7f6 {[%emt 0:02:45]} 22. Bxd5 {[%emt 0:00:00]} Nxd5 {[%emt 0:00:08]} 23. Bxe5 {[%emt 0:00:00]} 1/2-1/2

[Event "95th Caplin Hastings Congress"]
[Site "Hastings"]
[Date "2019.12.29"]
[Round "2.34"]
[White "Graham, David B"]
[Black "Thorpe, Thomas"]
[Result "1-0"]
[ECO "B77"]
[WhiteElo "2152"]
[BlackElo "1924"]
[Annotator "NA"]
[PlyCount "59"]
[EventDate "2019.12.28"]
[EventType "swiss"]
[EventCountry "ENG"]
[SourceTitle "playchess.com"]
[Source "ChessBase"]
[SourceQuality "1"]
[TimeControl "40/6600+30:3000+30"]

1. e4 {[%emt 0:09:32]} c5 {[%emt 0:09:39]} 2. Nf3 {[%emt 0:00:40]} Nc6 {[%emt 0:00:14]} 3. d4 {[%emt 0:00:10]} cxd4 {[%emt 0:00:07]} 4. Nxd4 {[%emt 0:00:04]} g6 {[%emt 0:00:21]} 5. Nc3 {[%emt 0:01:00]} Bg7 {[%emt 0:00:28]} 6. Be3 {[%emt 0:00:05]} Nf6 {[%emt 0:00:49]} 7. Bc4 {[%emt 0:00:13]} O-O {[%emt 0:00:32]} 8. Bb3 {[%emt 0:00:27]} d6 {[%emt 0:03:47]} 9. f3 {[%emt 0:00:33]} Bd7 {[%emt 0:00:42]} 10. Qd2 {[%emt 0:00:33]} Rb8 {[%emt 0:02:14]} 11. h4 {[%emt 0:11:45]} h5 {[%emt 0:06:06]} 12. Nxc6 {[%emt 0:01:39]} bxc6 {[%emt 0:03:08]} 13. Bxa7 {[%emt 0:00:19]} Rb7 {[%emt 0:01:11]} 14. Be3 {[%emt 0:00:25]} Qb8 {[%emt 0:22:25]} 15. Bh6 {[%emt 0:09:48]} Bxh6 {[%emt 0:05:28]} 16. Qxh6 {[%emt 0:00:06]} d5 {[%emt 0:00:11]} 17. O-O-O {[%emt 0:30:37]} Rc8 {[%emt 0:09:54]} 18. Rhe1 {[%emt 0:00:00]} e5 {[%emt 0:12:47]} 19. Qg5 {[%emt 0:05:02]} Nh7 {[%emt 0:09:08]} 20. Qg3 {[%emt 0:00:23]} d4 {[%emt 0:00:12]} 21. Qxg6+ {[%emt 0:04:38]} Kh8 {[%emt 0:00:09]} 22. Qxf7 {[%emt 0:01:19]} Bg4 {[%emt 0:07:02]} 23. Qg6 {[%emt 0:06:38]} c5 {[%emt 0:08:22]} 24. fxg4 {[%emt 0:06:40]} c4 {[%emt 0:00:17]} 25. Rf1 {[%emt 0:08:43]} cxb3 {[%emt 0:05:05]} 26. Rf7 {[%emt 0:04:32]} Rxf7 {[%emt 0:00:11]} 27. Qxf7 {[%emt 0:00:03]} bxc2 {[%emt 0:01:50]} 28. Kxc2 {[%emt 0:01:11]} Qb5 {[%emt 0:04:58]} 29. Qd5 {[%emt 0:02:23]} Qe2+ {[%emt 0:01:01]} 30. Rd2 {[%emt 0:00:20]} 1-0

[Event "95th Caplin Hastings Congress"]
[Site "Hastings"]
[Date "2019.12.29"]
[Round "2.35"]
[White "Eames, Robert S"]
[Black "Jukes, Sam"]
[Result "1-0"]
[ECO "C67"]
[WhiteElo "2150"]
[BlackElo "1906"]
[Annotator "NA"]
[PlyCount "87"]
[EventDate "2019.12.28"]
[EventType "swiss"]
[EventCountry "ENG"]
[SourceTitle "playchess.com"]
[Source "ChessBase"]
[SourceQuality "1"]
[TimeControl "40/6600+30:3000+30"]

1. e4 {[%emt 0:09:48]} e5 {[%emt 0:09:37]} 2. Nf3 {[%emt 0:00:16]} Nc6 {[%emt 0:00:06]} 3. Bb5 {[%emt 0:00:09]} Nf6 {[%emt 0:00:21]} 4. O-O {[%emt 0:00:37]} Nxe4 {[%emt 0:00:30]} 5. Re1 {[%emt 0:00:18]} Nd6 {[%emt 0:00:12]} 6. Nxe5 {[%emt 0:00:23]} Nxe5 {[%emt 0:01:54]} 7. Rxe5+ {[%emt 0:00:11]} Be7 {[%emt 0:00:08]} 8. Bf1 {[%emt 0:00:22]} O-O {[%emt 0:00:55]} 9. d4 {[%emt 0:00:39]} Bf6 {[%emt 0:01:49]} 10. Re1 {[%emt 0:01:39]} Nf5 {[%emt 0:04:26]} 11. d5 {[%emt 0:00:28]} d6 {[%emt 0:01:29]} 12. Nd2 {[%emt 0:00:48]} c5 {[%emt 0:09:21]} 13. Ne4 {[%emt 0:02:21]} Be7 {[%emt 0:07:53]} 14. g3 {[%emt 0:09:01]} a6 {[%emt 0:03:54]} 15. a4 {[%emt 0:01:25]} Bd7 {[%emt 0:03:34]} 16. Bf4 {[%emt 0:07:15]} b5 {[%emt 0:16:54]} 17. axb5 {[%emt 0:05:21]} Bxb5 {[%emt 0:01:52]} 18. Bh3 {[%emt 0:05:58]} Bd7 {[%emt 0:05:35]} 19. c3 {[%emt 0:01:14]} Ne3 {[%emt 0:10:13]} 20. Rxe3 {[%emt 0:00:30]} Bxh3 {[%emt 0:00:07]} 21. g4 {[%emt 0:00:07]} Bxg4 {[%emt 0:01:57]} 22. Qxg4 {[%emt 0:05:13]} f5 {[%emt 0:00:22]} 23. Qh3 {[%emt 0:01:56]} fxe4 {[%emt 0:02:32]} 24. Rxe4 {[%emt 0:03:24]} Rf6 {[%emt 0:02:58]} 25. Rae1 {[%emt 0:01:37]} Bf8 {[%emt 0:10:46]} 26. Qe3 {[%emt 0:12:51]} Qc8 {[%emt 0:05:02]} 27. Bg5 {[%emt 0:06:24]} Rg6 {[%emt 0:03:45]} 28. Re6 {[%emt 0:00:34]} Ra7 {[%emt 0:05:04]} 29. f4 {[%emt 0:15:55]} Rxe6 {[%emt 0:01:38]} 30. dxe6 {[%emt 0:00:57]} Be7 {[%emt 0:00:09]} 31. f5 {[%emt 0:00:38]} Qd8 {[%emt 0:01:29]} 32. Bf4 {[%emt 0:01:11]} Rb7 {[%emt 0:00:33]} 33. Re2 {[%emt 0:05:14]} a5 {[%emt 0:02:39]} 34. Qg3 {[%emt 0:02:15]} a4 {[%emt 0:02:48]} 35. Rg2 {[%emt 0:02:53]} Bh4 {[%emt 0:01:30]} 36. Qf3 {[%emt 0:01:41]} Rb6 {[%emt 0:01:18]} 37. Qd5 {[%emt 0:01:21]} Kh8 {[%emt 0:01:09]} 38. Re2 {[%emt 0:05:55]} h6 {[%emt 0:00:52]} 39. e7 {[%emt 0:03:27]} Bxe7 {[%emt 0:01:05]} 40. Qf7 {[%emt 0:00:08]} Rb7 {[%emt 0:00:51]} 41. f6 {[%emt 0:56:50]} gxf6 {[%emt 0:04:03]} 42. Rg2 {[%emt 0:00:00]} Qf8 {[%emt 0:03:26]} 43. Qd5 {[%emt 0:00:00]} Rb8 {[%emt 0:10:49]} 44. Qh5 {[%emt 0:00:00]} 1-0

[Event "95th Caplin Hastings Congress"]
[Site "Hastings"]
[Date "2019.12.29"]
[Round "2.36"]
[White "Faulks, Nick"]
[Black "Gutierrez Carmona, Juan Alejandr"]
[Result "0-1"]
[ECO "C33"]
[WhiteElo "1900"]
[BlackElo "2146"]
[Annotator "NA"]
[PlyCount "68"]
[EventDate "2019.12.28"]
[EventType "swiss"]
[EventCountry "ENG"]
[SourceTitle "playchess.com"]
[Source "ChessBase"]
[SourceQuality "1"]
[TimeControl "40/6600+30:3000+30"]

1. e4 {[%emt 0:09:33]} e5 {[%emt 0:12:31]} 2. f4 {[%emt 0:00:13]} exf4 {[%emt 0:00:44]} 3. Bc4 {[%emt 0:02:05]} d6 {[%emt 0:06:49]} 4. d4 {[%emt 0:05:37]} Qh4+ {[%emt 0:04:26]} 5. Kf1 {[%emt 0:00:13]} g5 {[%emt 0:00:23]} 6. Nc3 {[%emt 0:10:56]} c6 {[%emt 0:00:10]} 7. Nf3 {[%emt 0:04:03]} Qh5 {[%emt 0:03:56]} 8. h4 {[%emt 0:13:19]} Bg4 {[%emt 0:18:47]} 9. Kf2 {[%emt 0:05:21]} gxh4 {[%emt 0:12:24]} 10. Bxf4 {[%emt 0:04:43]} Be7 {[%emt 0:00:29]} 11. Qd2 {[%emt 0:03:36]} Nd7 {[%emt 0:03:43]} 12. Nxh4 {[%emt 0:05:36]} Bxh4+ {[%emt 0:02:17]} 13. g3 {[%emt 0:00:12]} Bxg3+ {[%emt 0:00:54]} 14. Bxg3 {[%emt 0:00:15]} Qg6 {[%emt 0:00:09]} 15. Qf4 {[%emt 0:04:57]} Rd8 {[%emt 0:12:45]} 16. Ke3 {[%emt 0:11:33]} h5 {[%emt 0:01:50]} 17. Raf1 {[%emt 0:03:18]} Rh7 {[%emt 0:03:31]} 18. Bh4 {[%emt 0:02:49]} Ne7 {[%emt 0:06:07]} 19. Rh2 {[%emt 0:03:45]} Nf8 {[%emt 0:09:58]} 20. d5 {[%emt 0:06:51]} Nd7 {[%emt 0:00:38]} 21. dxc6 {[%emt 0:04:50]} bxc6 {[%emt 0:00:02]} 22. Bb3 {[%emt 0:02:38]} f5 {[%emt 0:12:49]} 23. Kd2 {[%emt 0:02:58]} Nf6 {[%emt 0:03:31]} 24. exf5 {[%emt 0:05:12]} Nxf5 {[%emt 0:01:28]} 25. Ne4 {[%emt 0:02:19]} Nxe4+ {[%emt 0:01:04]} 26. Qxe4+ {[%emt 0:00:12]} Kd7 {[%emt 0:00:55]} 27. Bxd8 {[%emt 0:01:20]} Kxd8 {[%emt 0:00:17]} 28. Rhf2 {[%emt 0:02:12]} d5 {[%emt 0:00:34]} 29. Qf4 {[%emt 0:00:40]} Rf7 {[%emt 0:00:46]} 30. Qb8+ {[%emt 0:00:35]} Ke7 {[%emt 0:00:01]} 31. Qe5+ {[%emt 0:01:07]} Kd7 {[%emt 0:00:20]} 32. Qf4 {[%emt 0:01:19]} Nd6 {[%emt 0:00:28]} 33. Qd4 {[%emt 0:00:27]} Ne4+ {[%emt 0:00:31]} 34. Kc1 {[%emt 0:00:06]} Qg5+ {[%emt 0:00:35]} 0-1

[Event "95th Caplin Hastings Congress"]
[Site "Hastings"]
[Date "2019.12.29"]
[Round "2.37"]
[White "De Boer, Bas"]
[Black "Metcalfe, Charlie P"]
[Result "1-0"]
[ECO "D27"]
[WhiteElo "2138"]
[BlackElo "1867"]
[Annotator "NA"]
[PlyCount "57"]
[EventDate "2019.12.28"]
[EventType "swiss"]
[EventCountry "ENG"]
[SourceTitle "playchess.com"]
[Source "ChessBase"]
[SourceQuality "1"]
[TimeControl "40/6600+30:3000+30"]

1. Nf3 {[%emt 0:09:33]} d5 {[%emt 0:09:34]} 2. e3 {[%emt 0:00:05]} Nf6 {[%emt 0:00:08]} 3. c4 {[%emt 0:00:07]} dxc4 {[%emt 0:00:02]} 4. Bxc4 {[%emt 0:00:07]} e6 {[%emt 0:00:04]} 5. O-O {[%emt 0:00:28]} a6 {[%emt 0:00:01]} 6. d4 {[%emt 0:00:25]} c5 {[%emt 0:00:06]} 7. b3 {[%emt 0:00:07]} cxd4 {[%emt 0:00:05]} 8. Nxd4 {[%emt 0:00:30]} Bd7 {[%emt 0:00:08]} 9. Bb2 {[%emt 0:00:41]} Nc6 {[%emt 0:00:05]} 10. Nc3 {[%emt 0:04:52]} Be7 {[%emt 0:13:27]} 11. Nf3 {[%emt 0:03:23]} O-O {[%emt 0:00:39]} 12. Rc1 {[%emt 0:00:42]} Rc8 {[%emt 0:08:49]} 13. Qe2 {[%emt 0:02:13]} Qa5 {[%emt 0:18:50]} 14. Rfd1 {[%emt 0:05:19]} Rfd8 {[%emt 0:00:09]} 15. h3 {[%emt 0:03:26]} b5 {[%emt 0:18:39]} 16. Bd3 {[%emt 0:00:07]} Bb4 {[%emt 0:02:55]} 17. Ne4 {[%emt 0:05:34]} Nd5 {[%emt 0:02:25]} 18. Nfg5 {[%emt 0:20:02]} h6 {[%emt 0:11:44]} 19. Nxf7 {[%emt 0:03:11]} Kxf7 {[%emt 0:01:37]} 20. Qh5+ {[%emt 0:00:12]} Ke7 {[%emt 0:07:23]} 21. Bxg7 {[%emt 0:00:57]} Be8 {[%emt 0:00:44]} 22. Qxh6 {[%emt 0:00:55]} Kd7 {[%emt 0:00:55]} 23. Ng5 {[%emt 0:01:56]} Nc3 {[%emt 0:07:44]} 24. Be4+ {[%emt 0:03:58]} Nxd1 {[%emt 0:00:59]} 25. Qxe6+ {[%emt 0:00:09]} Kc7 {[%emt 0:00:06]} 26. Rxc6+ {[%emt 0:00:07]} Kb8 {[%emt 0:01:17]} 27. Rb6+ {[%emt 0:00:56]} Ka7 {[%emt 0:02:15]} 28. Rb7+ {[%emt 0:00:12]} Ka8 {[%emt 0:00:02]} 29. Rxb5+ {[%emt 0:00:20]} 1-0

[Event "95th Caplin Hastings Congress"]
[Site "Hastings"]
[Date "2019.12.29"]
[Round "2.38"]
[White "Makkar, Rajat"]
[Black "Shivika Rohilla"]
[Result "0-1"]
[ECO "E01"]
[WhiteElo "2137"]
[BlackElo "1744"]
[Annotator "NA"]
[PlyCount "84"]
[EventDate "2019.12.28"]
[EventType "swiss"]
[EventCountry "ENG"]
[SourceTitle "playchess.com"]
[Source "ChessBase"]
[SourceQuality "1"]
[TimeControl "40/6600+30:3000+30"]

1. d4 {[%emt 0:09:38]} d5 {[%emt 0:09:34]} 2. c4 {[%emt 0:00:24]} e6 {[%emt 0:00:06]} 3. g3 {[%emt 0:00:14]} Nf6 {[%emt 0:00:10]} 4. Bg2 {[%emt 0:00:08]} a6 {[%emt 0:00:49]} 5. Qc2 {[%emt 0:03:40]} Nbd7 {[%emt 0:02:06]} 6. Bf4 {[%emt 0:02:41]} dxc4 {[%emt 0:05:51]} 7. Qxc4 {[%emt 0:02:00]} c5 {[%emt 0:00:08]} 8. dxc5 {[%emt 0:07:40]} Bxc5 {[%emt 0:04:14]} 9. b4 {[%emt 0:03:17]} Ba7 {[%emt 0:02:00]} 10. Nf3 {[%emt 0:03:03]} O-O {[%emt 0:07:47]} 11. O-O {[%emt 0:02:21]} Nb6 {[%emt 0:01:07]} 12. Qb3 {[%emt 0:04:00]} Nbd5 {[%emt 0:00:34]} 13. Bc1 {[%emt 0:09:55]} b5 {[%emt 0:02:48]} 14. Bb2 {[%emt 0:04:04]} Bb7 {[%emt 0:00:57]} 15. Nbd2 {[%emt 0:01:14]} Qe7 {[%emt 0:00:29]} 16. a3 {[%emt 0:01:15]} Rac8 {[%emt 0:03:16]} 17. e3 {[%emt 0:06:21]} Rfd8 {[%emt 0:01:54]} 18. Rfd1 {[%emt 0:01:19]} Nb6 {[%emt 0:02:34]} 19. Bd4 {[%emt 0:00:57]} Bd5 {[%emt 0:01:33]} 20. Qd3 {[%emt 0:04:57]} Na4 {[%emt 0:01:31]} 21. Qf1 {[%emt 0:09:15]} Nc3 {[%emt 0:11:25]} 22. Rdc1 {[%emt 0:02:08]} Nfe4 {[%emt 0:04:48]} 23. Nxe4 {[%emt 0:04:09]} Nxe4 {[%emt 0:00:09]} 24. Bxa7 {[%emt 0:00:55]} Qxa7 {[%emt 0:00:16]} 25. Nd4 {[%emt 0:01:49]} Nd2 {[%emt 0:12:21]} 26. Qe2 {[%emt 0:03:22]} Bxg2 {[%emt 0:04:35]} 27. Kxg2 {[%emt 0:00:45]} Qb7+ {[%emt 0:00:34]} 28. Kg1 {[%emt 0:00:26]} Nc4 {[%emt 0:01:48]} 29. Nb3 {[%emt 0:05:54]} Ne5 {[%emt 0:01:33]} 30. Nd4 {[%emt 0:02:10]} h6 {[%emt 0:01:24]} 31. Rc5 {[%emt 0:06:30]} Rxc5 {[%emt 0:01:56]} 32. bxc5 {[%emt 0:00:02]} Rxd4 {[%emt 0:01:04]} 33. exd4 {[%emt 0:06:44]} Nf3+ {[%emt 0:00:04]} 34. Kf1 {[%emt 0:00:44]} Nxd4 {[%emt 0:00:06]} 35. f3 {[%emt 0:00:42]} Nxe2 {[%emt 0:00:04]} 36. Kxe2 {[%emt 0:00:06]} Qc6 {[%emt 0:01:34]} 37. Rc1 {[%emt 0:00:05]} Kf8 {[%emt 0:00:28]} 38. Rc2 {[%emt 0:01:52]} Ke7 {[%emt 0:00:07]} 39. f4 {[%emt 0:00:06]} Qe4+ {[%emt 0:00:27]} 40. Kd2 {[%emt 0:00:08]} Kd7 {[%emt 0:00:24]} 41. Kc1 {[%emt 0:50:17]} Kc6 {[%emt 0:50:15]} 42. Kb2 {[%emt 0:00:17]} f6 {[%emt 0:02:40]} 0-1

[Event "95th Caplin Hastings Congress"]
[Site "Hastings"]
[Date "2019.12.29"]
[Round "2.39"]
[White "Merriman, James"]
[Black "Ryzhkov, Vjacheslav"]
[Result "0-1"]
[ECO "D35"]
[WhiteElo "1895"]
[BlackElo "2134"]
[Annotator "NA"]
[PlyCount "134"]
[EventDate "2019.12.28"]
[EventType "swiss"]
[EventCountry "ENG"]
[SourceTitle "playchess.com"]
[Source "ChessBase"]
[SourceQuality "1"]
[TimeControl "40/6600+30:3000+30"]

1. d4 {[%emt 0:09:43]} e6 {[%emt 0:09:41]} 2. c4 {[%emt 0:00:04]} d5 {[%emt 0:00:19]} 3. Nc3 {[%emt 0:00:11]} Nf6 {[%emt 0:00:11]} 4. cxd5 {[%emt 0:00:07]} exd5 {[%emt 0:00:12]} 5. Bg5 {[%emt 0:02:31]} c6 {[%emt 0:00:11]} 6. e3 {[%emt 0:00:07]} Qb6 {[%emt 0:00:26]} 7. Qb3 {[%emt 0:02:40]} Ne4 {[%emt 0:03:11]} 8. Bf4 {[%emt 0:03:07]} Bf5 {[%emt 0:05:53]} 9. Nge2 {[%emt 0:03:18]} Na6 {[%emt 0:09:38]} 10. Nxe4 {[%emt 0:04:04]} Bxe4 {[%emt 0:03:39]} 11. Nc3 {[%emt 0:02:51]} Qxb3 {[%emt 0:06:21]} 12. axb3 {[%emt 0:00:30]} Nb4 {[%emt 0:00:47]} 13. Kd2 {[%emt 0:00:44]} Bc2 {[%emt 0:02:52]} 14. Ra3 {[%emt 0:03:34]} Be7 {[%emt 0:02:25]} 15. Be2 {[%emt 0:01:28]} O-O {[%emt 0:00:42]} 16. Bd1 {[%emt 0:07:43]} Bg6 {[%emt 0:01:33]} 17. Be2 {[%emt 0:02:16]} Rfd8 {[%emt 0:03:25]} 18. Raa1 {[%emt 0:08:17]} c5 {[%emt 0:06:51]} 19. Rac1 {[%emt 0:04:23]} cxd4 {[%emt 0:04:25]} 20. exd4 {[%emt 0:00:14]} Nc6 {[%emt 0:00:40]} 21. Nb5 {[%emt 0:07:39]} Rac8 {[%emt 0:11:20]} 22. Be3 {[%emt 0:01:19]} a6 {[%emt 0:00:47]} 23. Nc3 {[%emt 0:01:11]} Bb4 {[%emt 0:17:07]} 24. Bd3 {[%emt 0:04:48]} Na5 {[%emt 0:01:17]} 25. Bc2 {[%emt 0:00:30]} Rc6 {[%emt 0:02:04]} 26. Bd1 {[%emt 0:01:43]} Rdc8 {[%emt 0:01:11]} 27. Ke2 {[%emt 0:03:02]} b5 {[%emt 0:06:45]} 28. Re1 {[%emt 0:05:27]} Nb7 {[%emt 0:04:19]} 29. Bd2 {[%emt 0:02:14]} Bxc3 {[%emt 0:04:20]} 30. Rxc3 {[%emt 0:00:45]} Nd6 {[%emt 0:01:20]} 31. f3 {[%emt 0:01:04]} Nf5 {[%emt 0:02:24]} 32. Rd3 {[%emt 0:04:41]} Nh4 {[%emt 0:01:52]} 33. Rc3 {[%emt 0:00:07]} Nxg2 {[%emt 0:01:31]} 34. Rxc6 {[%emt 0:00:55]} Rxc6 {[%emt 0:00:04]} 35. Rg1 {[%emt 0:00:11]} Nh4 {[%emt 0:00:25]} 36. Bc3 {[%emt 0:00:32]} Re6+ {[%emt 0:00:50]} 37. Kd2 {[%emt 0:01:47]} Nf5 {[%emt 0:00:38]} 38. Re1 {[%emt 0:01:13]} Rxe1 {[%emt 0:00:16]} 39. Kxe1 {[%emt 0:00:05]} f6 {[%emt 0:02:15]} 40. Kf2 {[%emt 0:01:37]} Kf7 {[%emt 0:00:07]} 41. f4 {[%emt 0:52:19]} Nd6 {[%emt 0:50:18]} 42. Bf3 {[%emt 0:01:35]} Be4 {[%emt 0:00:07]} 43. Bg4 {[%emt 0:01:51]} Bc2 {[%emt 0:01:50]} 44. Bb4 {[%emt 0:01:06]} Ne4+ {[%emt 0:00:00]} 45. Ke3 {[%emt 0:00:00]} Bxb3 {[%emt 0:00:00]} 46. Bc8 {[%emt 0:00:00]} Bc4 {[%emt 0:00:00]} 47. Bxa6 {[%emt 0:00:00]} f5 {[%emt 0:00:00]} 48. b3 {[%emt 0:00:00]} Bxb3 {[%emt 0:00:00]} 49. Bxb5 {[%emt 0:00:00]} Kf6 {[%emt 0:00:00]} 50. Bd3 {[%emt 0:00:00]} Ke6 {[%emt 0:00:00]} 51. Bxe4 {[%emt 0:00:00]} dxe4 {[%emt 0:00:00]} 52. Bf8 {[%emt 0:00:00]} Kf7 {[%emt 0:00:00]} 53. Bd6 {[%emt 0:00:00]} Kf6 {[%emt 0:00:00]} 54. Bc7 {[%emt 0:00:00]} Kg6 {[%emt 0:00:00]} 55. h4 {[%emt 0:00:00]} Kh5 {[%emt 0:00:00]} 56. Bd8 {[%emt 0:00:00]} Kg4 {[%emt 0:00:00]} 57. Be7 {[%emt 0:00:58]} Bd5 {[%emt 0:00:00]} 58. Bd8 {[%emt 0:00:00]} h6 {[%emt 0:00:00]} 59. Be7 {[%emt 0:00:00]} g5 {[%emt 0:00:00]} 60. fxg5 {[%emt 0:00:00]} f4+ {[%emt 0:00:00]} 61. Ke2 {[%emt 0:00:00]} Bc4+ {[%emt 0:00:00]} 62. Ke1 {[%emt 0:00:00]} e3 {[%emt 0:00:00]} 63. gxh6 {[%emt 0:00:00]} f3 {[%emt 0:00:00]} 64. h7 {[%emt 0:00:00]} f2+ {[%emt 0:00:00]} 65. Kd1 {[%emt 0:00:00]} f1=Q+ {[%emt 0:00:00]} 66. Kc2 {[%emt 0:00:00]} Qd3+ {[%emt 0:00:00]} 67. Kb2 {[%emt 0:00:00]} Qxd4+ {[%emt 0:00:32]} 0-1